lending/lending_fUSD_20240816
["ID","MTS","AMOUNT","RATE_DAILY","PERIOD"]
[335051722,1723792259578,-552.99,0.00023779,7]
[335051723,1723792259587,-552.99,0.00023779,7]
[335051724,1723792259596,-1095.34,0.00023779,7]
[335051725,1723792259606,-1095.34,0.00023779,7]
[335051726,1723792259615,-500.0,0.00023779,7]
[335051727,1723792259624,-500.0,0.00023779,7]
[335051728,1723792259634,-500.0,0.00023779,7]
[335051729,1723792259643,-500.0,0.00023779,7]
[335051730,1723792259651,-500.0,0.00023779,7]
[335051731,1723792259660,-500.0,0.00023779,7]
[335051732,1723792259670,-500.0,0.00023779,7]
[335051733,1723792259680,-269.24205525,0.00023779,7]
[335051734,1723792259689,-737.6,0.00023779,7]
[335051735,1723792259698,-737.6,0.00023779,7]
[335051736,1723792259707,-500.0,0.00023779,7]
[335051737,1723792259717,-500.0,0.00023779,7]
[335051738,1723792259726,-3054.47,0.00023779,7]
[335051739,1723792259735,-3054.47,0.00023779,7]
[335051740,1723792259744,-547.44,0.00023779,7]
[335051741,1723792259753,-500.0,0.00023779,7]
[335051742,1723792259762,-547.44,0.00023779,7]
[335051743,1723792259771,-500.0,0.00023779,7]
[335051744,1723792259781,-547.44,0.00023779,7]
[335051745,1723792259790,-2641.39,0.00023779,7]
[335051746,1723792259799,-2641.39,0.00023779,7]
[335051747,1723792259808,-2524.3,0.00023779,7]
[335051748,1723792259818,-2524.3,0.00023779,7]
[335051749,1723792259827,-500.0,0.00023779,7]
[335051750,1723792259837,-500.0,0.00023779,7]
[335051751,1723792259846,-500.0,0.00023779,7]
[335051752,1723792259855,-500.0,0.00023779,7]
[335051753,1723792259864,-500.0,0.00023779,7]
[335051754,1723792259873,-500.0,0.00023779,7]
[335051755,1723792259882,-500.0,0.00023779,7]
[335051756,1723792259891,-500.0,0.00023779,7]
[335051757,1723792259900,-500.0,0.00023779,7]
[335051758,1723792259909,-1115.96,0.00023779,7]
[335051759,1723792259919,-1115.96,0.00023779,7]
[335051760,1723792259928,-500.0,0.00023779,7]
[335051761,1723792259937,-500.0,0.00023779,7]
[335051762,1723792259946,-501.37497277,0.00023779,7]
[335051763,1723792259955,-833.93,0.00023779,7]
[335051764,1723792259967,-833.93,0.00023779,7]
[335051765,1723792259976,-833.93,0.00023779,7]
[335051766,1723792259986,-856.03,0.00023779,7]
[335051767,1723792259995,-856.03,0.00023779,7]
[335051768,1723792260004,-856.03,0.00023779,7]
[335051769,1723792260013,-856.03,0.00023779,7]
[335051770,1723792260023,-856.03,0.00023779,7]
[335051771,1723792260032,-856.03,0.00023779,7]
[335051772,1723792260041,-856.04861358,0.00023779,7]
[335051773,1723792260051,-699.63,0.00023779,2]
[335051774,1723792260060,-699.63,0.00023779,2]
[335051775,1723792260070,-699.63,0.00023779,2]
[335051776,1723792260079,-699.63,0.00023779,2]
[335051777,1723792260088,-699.63,0.00023779,2]
[335051778,1723792260100,-699.79809959,0.00023779,2]
[335051779,1723792260110,-1873.51,0.00023779,7]
[335051780,1723792260119,-1873.51,0.00023779,7]
[335051781,1723792260128,-1873.51,0.00023779,7]
[335051782,1723792260137,-1873.51,0.00023779,7]
[335051783,1723792260147,-1873.51,0.00023779,7]
[335051784,1723792260156,-1873.71762612,0.00023779,7]
[335051785,1723792260167,-1400.53,0.00023779,7]
[335051786,1723792260176,-1400.53,0.00023779,7]
[335051787,1723792260185,-1400.53,0.00023779,7]
[335051788,1723792260194,-1400.53,0.00023779,7]
[335051789,1723792260203,-1400.53,0.00023779,7]
[335051790,1723792260213,-1400.73620504,0.00023779,7]
[335051791,1723792260223,-3879.67,0.00023779,7]
[335051792,1723792260233,-3879.67,0.00023779,7]
[335051793,1723792260244,-3879.67,0.00023779,7]
[335051794,1723792260254,-3879.67,0.00023779,7]
[335051795,1723792260263,-3879.67,0.00023779,7]
[335051796,1723792260274,-3879.88610996,0.00023779,7]
[335051797,1723792260284,-1000.0,0.00023779,7]
[335051798,1723792260293,-1000.0,0.00023779,7]
[335051799,1723792260303,-822.26188685,0.00023779,7]
[335051800,1723792260313,-1925.58,0.0002378,7]
[335051801,1723792260324,-500.0,0.0002378,7]
[335051802,1723792260335,-500.0,0.0002378,7]
[335051803,1723792260345,-500.0,0.0002378,7]
[335051804,1723792260356,-500.0,0.0002378,7]
[335051805,1723792260365,-500.0,0.0002378,7]
[335051806,1723792260375,-2600.37,0.0002378,7]
[335051807,1723792260384,-500.0,0.0002378,7]
[335051808,1723792260395,-500.0,0.0002378,7]
[335051809,1723792260406,-500.0,0.0002378,7]
[335051810,1723792260417,-500.0,0.0002378,7]
[335051811,1723792260427,-512.64,0.0002378,7]
[335051812,1723792260437,-500.0,0.0002378,7]
[335051813,1723792260447,-500.0,0.0002378,7]
[335051814,1723792260457,-500.0,0.0002378,7]
[335051815,1723792260468,-500.0,0.0002378,7]
[335051816,1723792260477,-2012.24,0.0002378,7]
[335051817,1723792260487,-500.0,0.0002378,7]
[335051818,1723792260496,-500.0,0.0002378,7]
[335051819,1723792260507,-500.0,0.0002378,7]
[335051820,1723792260519,-500.0,0.0002378,7]
[335051821,1723792260529,-401.45226074,0.0002378,7]
[335051822,1723792260540,-500.0,0.0002378,7]
[335051823,1723792260550,-2946.67,0.0002378,7]
[335051824,1723792260562,-648.76,0.0002378,7]
[335051825,1723792260572,-500.0,0.0002378,7]
[335051826,1723792260582,-3178.63,0.0002378,7]
[335051827,1723792260593,-500.0,0.0002378,7]
[335051828,1723792260603,-500.0,0.0002378,7]
[335051829,1723792260613,-2345.75,0.0002378,7]
[335051830,1723792260628,-500.0,0.0002378,7]
[335051831,1723792260638,-500.0,0.0002378,7]
[335051832,1723792260647,-500.0,0.0002378,7]
[335051833,1723792260657,-500.0,0.0002378,7]
[335051834,1723792260667,-500.0,0.0002378,7]
[335051835,1723792260676,-620.7,0.0002378,7]
[335051836,1723792260684,-863.95,0.0002378,7]
[335051837,1723792260693,-2250.8,0.0002378,7]
[335051838,1723792260703,-1288.16,0.0002378,7]
[335051839,1723792260712,-500.0,0.0002378,7]
[335051840,1723792260721,-3840.1,0.0002378,7]
[335051841,1723792260730,-500.0,0.0002378,7]
[335051842,1723792260740,-500.0,0.0002378,7]
[335051843,1723792260749,-3264.43,0.0002378,7]
[335051844,1723792260758,-349.98726991,0.0002378,7]
[335051845,1723792260768,-812.32,0.0002378,7]
[335051846,1723792260777,-500.0,0.0002378,7]
[335051847,1723792260786,-500.0,0.0002378,7]
[335051848,1723792260796,-3724.18,0.0002378,7]
[335051849,1723792260805,-500.0,0.0002378,7]
[335051850,1723792260815,-500.0,0.0002378,7]
[335051851,1723792260824,-1787.24,0.0002378,7]
[335051852,1723792260833,-500.0,0.0002378,7]
[335051853,1723792260842,-500.0,0.0002378,7]
[335051854,1723792260851,-351.3840902,0.0002378,7]
[335051855,1723792260863,-500.0,0.0002378,7]
[335051856,1723792260872,-708.52,0.0002378,7]
[335051857,1723792260881,-500.0,0.0002378,7]
[335051858,1723792260891,-1589.26,0.0002378,7]
[335051859,1723792260900,-1051.07,0.0002378,7]
[335051860,1723792260910,-500.0,0.0002378,7]
[335051861,1723792260919,-617.9,0.0002378,7]
[335051862,1723792261051,-583.31,0.0002378,7]
[335051863,1723792261062,-752.43,0.0002378,7]
[335051864,1723792261072,-1179.8,0.0002378,7]
[335051865,1723792261081,-500.0,0.0002378,7]
[335051866,1723792261091,-984.24,0.0002378,7]
[335051867,1723792261100,-500.0,0.0002378,7]
[335051868,1723792261109,-1716.22,0.0002378,7]
[335051869,1723792261119,-500.0,0.0002378,7]
[335051870,1723792261128,-500.0,0.0002378,7]
[335051871,1723792261137,-500.0,0.0002378,7]
[335051872,1723792261147,-537.01,0.0002378,7]
[335051873,1723792261156,-783.81,0.0002378,7]
[335051874,1723792261166,-706.3,0.0002378,7]
[335051875,1723792261175,-1021.21,0.0002378,7]
[335051876,1723792261185,-500.0,0.0002378,7]
[335051877,1723792261196,-1384.77,0.0002378,7]
[335051878,1723792261205,-500.0,0.0002378,7]
[335051879,1723792261216,-500.0,0.0002378,7]
[335051880,1723792261225,-527.86,0.0002378,7]
[335051881,1723792261235,-988.78,0.0002378,7]
[335051882,1723792261247,-500.0,0.0002378,7]
[335051883,1723792261257,-500.0,0.0002378,7]
[335051884,1723792261266,-1242.83,0.0002378,7]
[335051885,1723792261276,-550.95,0.0002378,7]
[335051886,1723792261286,-500.0,0.0002378,7]
[335051887,1723792261297,-500.0,0.0002378,7]
[335051888,1723792261308,-500.0,0.0002378,7]
[335051889,1723792261320,-500.0,0.0002378,7]
[335051890,1723792261330,-559.12,0.0002378,7]
[335051891,1723792261340,-500.0,0.0002378,7]
[335051892,1723792261350,-1225.39,0.0002378,7]
[335051893,1723792261360,-500.0,0.0002378,7]
[335051894,1723792261370,-500.0,0.0002378,7]
[335051895,1723792261380,-500.0,0.0002378,7]
[335051896,1723792261390,-500.0,0.0002378,7]
[335051897,1723792261400,-532.06,0.0002378,7]
[335051898,1723792261410,-1236.83,0.0002378,7]
[335051899,1723792261421,-802.61,0.0002378,7]
[335051900,1723792261430,-500.0,0.0002378,7]
[335051901,1723792261441,-896.82,0.0002378,7]
[335051902,1723792261451,-599.23,0.0002378,7]
[335051903,1723792261460,-1845.45,0.0002378,7]
[335051904,1723792261469,-570.74,0.0002378,7]
[335051905,1723792261478,-1137.07,0.0002378,7]
[335051906,1723792261488,-518.61,0.0002378,7]
[335051907,1723792261497,-500.0,0.0002378,7]
[335051908,1723792261506,-600.03,0.0002378,7]
[335051909,1723792261516,-539.87,0.0002378,7]
[335051910,1723792261526,-500.0,0.0002378,7]
[335051911,1723792261536,-500.0,0.0002378,7]
[335051912,1723792261546,-869.76,0.0002378,7]
[335051913,1723792261557,-721.84,0.0002378,7]
[335051914,1723792261567,-3411.05,0.0002378,7]
[335051915,1723792261577,-500.0,0.0002378,7]
[335051916,1723792261588,-872.43,0.0002378,7]
[335051917,1723792261598,-28691.57,0.0002378,7]
[335051918,1723792261608,-511.98,0.0002378,7]
[335051919,1723792261617,-500.0,0.0002378,7]
[335051920,1723792261627,-657.32,0.0002378,7]
[335051921,1723792261637,-30284.25,0.0002378,7]
[335051922,1723792261646,-711.04,0.0002378,7]
[335051923,1723792261655,-500.0,0.0002378,7]
[335051924,1723792261664,-6264.41,0.0002378,7]
[335051925,1723792261674,-500.0,0.0002378,7]
[335051926,1723792261684,-949.08,0.0002378,7]
[335051927,1723792261694,-4908.41,0.0002378,7]
[335051928,1723792261704,-661.97,0.0002378,7]
[335051929,1723792261715,-15944.16,0.0002378,7]
[335051930,1723792261724,-14290.2,0.0002378,7]
[335051931,1723792261734,-5922.58,0.0002378,7]
[335051932,1723792261743,-9146.29,0.0002378,7]
[335051933,1723792261753,-500.0,0.0002378,7]
[335051934,1723792261763,-1733.27,0.0002378,7]
[335051935,1723792261773,-608.19,0.0002378,7]
[335051936,1723792261783,-500.0,0.0002378,7]
[335051937,1723792261793,-3156.76,0.0002378,7]
[335051938,1723792261807,-500.0,0.0002378,7]
[335051939,1723792261817,-1160.67,0.0002378,7]
[335051940,1723792261827,-8282.48,0.0002378,7]
[335051941,1723792261838,-3913.49,0.0002378,7]
[335051942,1723792261847,-4825.78,0.0002378,7]
[335051943,1723792261857,-5901.24,0.0002378,7]
[335051944,1723792261867,-1780.05,0.0002378,7]
[335051945,1723792261876,-4137.59,0.0002378,7]
[335051946,1723792261886,-4945.29,0.0002378,7]
[335051947,1723792261896,-3055.36,0.0002378,7]
[335051948,1723792261906,-7634.79,0.0002378,7]
[335051949,1723792261917,-1433.1,0.0002378,7]
[335051950,1723792261927,-1227.67,0.0002378,7]
[335051951,1723792261938,-8001.35,0.0002378,7]
[335051952,1723792261948,-567.84455473,0.0002378,7]
[335051953,1723792261958,-1405.64,0.0002378,7]
[335051954,1723792261970,-21245.41,0.0002378,7]
[335051955,1723792261980,-2184.59,0.0002378,7]
[335051956,1723792261990,-3243.93416501,0.0002378,7]
[335051957,1723792262771,-4120.60583499,0.0002378,7]
[335051958,1723792262782,-6031.18,0.0002378,7]
[335051959,1723792262791,-781.41,0.0002378,7]
[335051960,1723792262802,-500.0,0.0002378,7]
[335051961,1723792262812,-6621.57,0.0002378,7]
[335051962,1723792262822,-621.99460165,0.0002378,7]
[335051963,1723792262832,-500.0,0.0002378,7]
[335051964,1723792262842,-4601.56,0.0002378,7]
[335051965,1723792262851,-1169.89,0.0002378,7]
[335051966,1723792262861,-8098.6,0.0002378,7]
[335051967,1723792262871,-500.0,0.0002378,7]
[335051968,1723792262880,-15024.61,0.0002378,7]
[335051969,1723792262890,-6939.63,0.0002378,7]
[335051970,1723792262899,-1368.58,0.0002378,7]
[335051971,1723792262908,-1819.6,0.0002378,7]
[335051972,1723792262918,-853.85,0.0002378,7]
[335051973,1723792262927,-500.0,0.0002378,7]
[335051974,1723792262936,-978.24,0.0002378,7]
[335051975,1723792263334,-500.0,0.0002378,7]
[335051976,1723792263351,-500.0,0.0002378,7]
[335051977,1723792263361,-4630.39,0.0002378,7]
[335051978,1723792263370,-2975.69,0.0002378,7]
[335051979,1723792263379,-1381.49,0.0002378,7]
[335051980,1723792263389,-545.65,0.0002378,7]
[335051981,1723792263398,-500.0,0.0002378,7]
[335051982,1723792263408,-12167.05,0.0002378,7]
[335051983,1723792263417,-4705.67,0.0002378,7]
[335051984,1723792263427,-500.0,0.0002378,7]
[335051985,1723792263437,-500.0,0.0002378,7]
[335051986,1723792263448,-673.75,0.0002378,7]
[335051987,1723792263458,-9541.69,0.0002378,7]
[335051988,1723792263469,-35640.17,0.0002378,7]
[335051989,1723792263479,-1255.64,0.0002378,7]
[335051990,1723792263488,-545.81,0.0002378,7]
[335051991,1723792263498,-3646.92,0.0002378,7]
[335051992,1723792263508,-500.0,0.0002378,7]
[335051993,1723792263518,-500.0,0.0002378,7]
[335051994,1723792263528,-923.6,0.0002378,7]
[335051995,1723792263537,-3132.89,0.0002378,7]
[335051996,1723792263547,-500.0,0.0002378,7]
[335051997,1723792263557,-1897.98,0.0002378,7]
[335051998,1723792263567,-500.0,0.0002378,7]
[335051999,1723792263578,-500.0,0.0002378,7]
[335052000,1723792263587,-8516.75,0.0002378,7]
[335052001,1723792263597,-500.0,0.0002378,7]
[335052002,1723792263607,-500.0,0.0002378,7]
[335052003,1723792263617,-500.0,0.0002378,7]
[335052004,1723792263627,-544.57952756,0.0002378,7]
[335052005,1723792263636,-1545.78,0.0002378,7]
[335052006,1723792263646,-2370.85984827,0.0002378,7]
[335052007,1723792263658,-1362.96015173,0.0002378,7]
[335052008,1723792263668,-500.0,0.0002378,7]
[335052009,1723792263677,-4308.98,0.0002378,7]
[335052010,1723792263688,-1819.02,0.0002378,7]
[335052011,1723792263698,-5073.95,0.0002378,7]
[335052012,1723792263707,-2778.23,0.0002378,7]
[335052013,1723792263718,-743.37,0.0002378,7]
[335052014,1723792263728,-500.0,0.0002378,7]
[335052015,1723792263737,-41516.94856047,0.0002378,7]
[335052016,1723792263750,-32539.95143953,0.0002378,7]
[335052017,1723792263760,-1666.42,0.0002378,7]
[335052018,1723792263770,-500.0,0.0002378,7]
[335052019,1723792263780,-1859.09,0.0002378,7]
[335052020,1723792263790,-2520.87,0.0002378,7]
[335052021,1723792263799,-5546.86,0.0002378,7]
[335052022,1723792263809,-500.0,0.0002378,7]
[335052023,1723792263819,-500.0,0.0002378,7]
[335052024,1723792263829,-500.0,0.0002378,7]
[335052025,1723792263839,-500.0,0.0002378,7]
[335052026,1723792263849,-500.0,0.0002378,7]
[335052027,1723792263858,-354.2966303,0.0002378,3]
[335052028,1723792263868,-42718.28458678,0.00023781,2]
[335052029,1723792263884,-433.29955815,0.00023781,2]
[335052030,1723792263896,-120212.60806095,0.00023781,2]
[335052031,1723792263977,-155.0,0.00010899,2]
[335052032,1723792263986,-151.0,0.000138,2]
[335052033,1723792263996,-86.29490377,0.000139,2]
[335052034,1723792264008,-64.70509623,0.000139,2]
[335052035,1723792264018,-151.0,0.000139,2]
[335052036,1723792264027,-127.98778585,0.00014753,2]
[335052037,1723792264039,-220.2763468,0.00014753,2]
[335052038,1723792264048,-151.0,0.00014975,2]
[335052039,1723792264058,-641.99787184,0.00023781,2]
[335052040,1723792264069,-529.60407928,0.00023781,2]
[335052041,1723792264081,-599.38694589,0.00023781,2]
[335052042,1723792264092,-636.87818,0.00023781,2]
[335052043,1723792264104,-482.00237009,0.00023781,2]
[335052044,1723792264115,-2396.5336603,0.00023781,2]
[335052045,1723792264127,-26400.76463366,0.00023781,2]
[335052046,1723792264139,-305.20127118,0.00023781,2]
[335052047,1723792264151,-12611.58875453,0.00023781,2]
[335052048,1723792264750,-1122.81021144,0.00023781,2]
[335052049,1723792264761,-397.66172814,0.00023781,2]
[335052050,1723792264856,-225.302796,0.000138,2]
[335052051,1723792264866,-225.302796,0.0001389,2]
[335052052,1723792264875,-20.01440798,0.000139,2]
[335052053,1723792264887,-205.28838802,0.000139,2]
[335052054,1723792264897,-151.839274,0.00014985,2]
[335052055,1723792264906,-32.50358165,0.00023781,2]
[335052056,1723792264918,-1000.18527722,0.00023781,2]
[335052057,1723792264930,-4776.59933758,0.00023781,2]
[335052058,1723792264946,-5891.39520654,0.00023781,2]
[335052059,1723792264958,-770.4,0.00023781,2]
[335052060,1723792264971,-3871.59662795,0.00023781,2]
[335052061,1723792264983,-344.831931,0.00023781,2]
[335052062,1723792264995,-549.88761698,0.00023781,2]
[335052065,1723792518149,-155.0,0.00010862,2]
[335052066,1723792518174,-4845.0,0.00010999,2]
[335052067,1723792604169,-4659.0,0.00010989,2]
[335052076,1723792681419,-300.0,0.00010948,2]
[335052077,1723792681441,-4700.0,0.00010949,2]
[335052078,1723792748117,-300.0,0.00010898,2]
[335052079,1723792748140,-300.0,0.00010898,2]
[335052080,1723792748164,-4400.0,0.00010899,2]
[335052089,1723793130166,323.65,9.848e-05,2]
[335052090,1723793136744,21739.85,9.5e-05,2]
[335052095,1723793156200,21178.06161902,6.94e-05,2]
[335052096,1723793192318,164.40811307,8.412e-05,2]
[335052097,1723793205188,12499.45592728,6.94e-05,2]
[335052098,1723793209255,1634.88204497,6.94e-05,2]
[335052101,1723793247250,150.0,8.412e-05,2]
[335052102,1723793247272,56.15596789,8.412e-05,2]
[335052104,1723793260752,150.0,8.412e-05,2]
[335052105,1723793260772,150.0,8.412e-05,2]
[335052106,1723793260792,235.01441198,8.412e-05,2]
[335052107,1723793260815,1099.86763299,8.412e-05,2]
[335052115,1723793310702,-2221.95229897,0.00010026,2]
[335052116,1723793310725,-200.0,0.00010145,2]
[335052117,1723793310747,-949.25809032,0.00010196,2]
[335052118,1723793310768,-292.68325867,0.00010196,2]
[335052119,1723793310790,-265.83,0.00010391,2]
[335052120,1723793310813,-1070.27635204,0.00010471,2]
[335052137,1723793431815,-1739.89635627,0.00010026,2]
[335052167,1723793431827,-2342.25040251,0.00010026,2]
[335052168,1723793432865,-1074.88726643,0.00010026,2]
[335052169,1723793432885,-300.0,0.00010096,2]
[335052170,1723793432909,-1500.0,0.00010097,2]
[335052171,1723793432939,-2112.26107616,0.00010097,2]
[335052172,1723793432952,-766.61,0.00010444,2]
[335052173,1723793432962,-575.94900175,0.00010471,2]
[335052174,1723793432972,-181.89991337,0.00010471,2]
[335052175,1723793432981,-1318.10503315,0.00010471,2]
[335052176,1723793432993,-316.77701182,0.00010471,2]
[335052177,1723793433003,-170.70052944,0.00010471,2]
[335052178,1723793433012,-203.44814982,0.00010471,2]
[335052179,1723793433022,-299.14911154,0.00010471,2]
[335052180,1723793433031,-517.65878543,0.00010471,2]
[335052181,1723793433042,-285.31806985,0.00010471,2]
[335052182,1723793433051,-297.51588055,0.00010471,2]
[335052183,1723793433061,-242.53687016,0.00010471,2]
[335052184,1723793433071,-522.9745894,0.00010471,2]
[335052185,1723793433081,-358.14086593,0.00010471,2]
[335052186,1723793433092,-200.0,0.00010501,2]
[335052187,1723793433102,-150.0,0.00010504,2]
[335052188,1723793433112,-464.50128177,0.00010505,2]
[335052189,1723793433122,-191.52383957,0.00010505,2]
[335052190,1723793433132,-253.70383205,0.00010505,2]
[335052191,1723793433143,-328.86743048,0.00010505,2]
[335052192,1723793433153,-166.39780491,0.00010505,2]
[335052193,1723793433163,-310.15276554,0.00010505,2]
[335052194,1723793433173,-202.96339221,0.00010566,2]
[335052195,1723793433184,-155.2991851,0.00010566,2]
[335052196,1723793433193,-236.78945143,0.00010566,2]
[335052197,1723793433203,-529.01492508,0.00010699,2]
[335052198,1723793433213,-164.4317177,0.00010699,2]
[335052199,1723793433225,-499.99,0.00010852,2]
[335052200,1723793433236,-393.86,0.00010852,2]
[335052201,1723793433247,-21940.85561676,0.00010861,2]
[335052202,1723793433257,-157.34072833,0.00010936,2]
[335052203,1723793433267,-178.34,0.00010947,2]
[335052204,1723793433278,-250.0,0.00010959,2]
[335052205,1723793433288,-769.62,0.00010959,2]
[335052206,1723793433299,-2841.60373024,0.00010989,2]
[335052207,1723793433309,-9961.61342847,0.00010993,2]
[335052208,1723793433319,-255.71947903,0.00010999,2]
[335052209,1723793433328,-28697.32787928,0.00011,2]
[335052210,1723793433341,-527.322701,0.00011,2]
[335052211,1723793433354,-555.249,0.00011,2]
[335052212,1723793433471,-211.03413449,0.00010097,2]
[335052213,1723793433481,-2751.22149475,0.00011,2]
[335052214,1723793433494,-5036.6456329,0.00011,2]
[335052215,1723793433506,-6154.11858187,0.00011,2]
[335052216,1723793433518,-2700.0,0.00011,2]
[335052217,1723793433529,-1028.79,0.00011,2]
[335052218,1723793433541,-752.17210597,0.00011,2]
[335052219,1723793433553,-8187.43401926,0.00011,2]
[335052220,1723793433574,-11676.20481038,0.00011,2]
[335052221,1723793433586,-4507.06363913,0.00011,2]
[335052222,1723793433598,-3094.55064906,0.00011,2]
[335052223,1723793433610,-1919.22464758,0.00011,2]
[335052224,1723793433622,-1184.24886143,0.00011,2]
[335052225,1723793433633,-368.7704374,0.00011,2]
[335052226,1723793433646,-805.63031946,0.00011,2]
[335052227,1723793433666,-375.4215614,0.00011,2]
[335052228,1723793433681,-1249.78872132,0.00011,2]
[335052229,1723793433698,-4753.55193141,0.00011,2]
[335052248,1723793438037,-1500.0,0.00010026,2]
[335052249,1723793438048,-500.0,0.00010097,2]
[335052250,1723793438060,-476.21124747,0.00010997,2]
[335052251,1723793438070,-3466.68140482,0.00011,2]
[335052252,1723793438091,-1133.7424,0.00011,2]
[335052253,1723793438121,-290.85166715,0.00011,2]
[335052254,1723793438273,-150.0,0.00011,2]
[335052265,1723793440238,-464.50128177,0.00010471,2]
[335052266,1723793440247,-345.38268489,0.00011,2]
[335052267,1723793440359,-52110.85762461,0.00011,2]
[335052268,1723793442248,-615.61579363,0.00011,2]
[335052287,1723793442943,-472.58202055,0.00011,2]
[335052291,1723793443703,-6099.87879838,0.00011,2]
[335052293,1723793444612,-586.43215281,0.00011,2]
[335052294,1723793444623,-1839.97617697,0.00011,2]
[335052295,1723793444634,-8798.02859357,0.00011,2]
[335052296,1723793444645,-485.305,0.00011,2]
[335052297,1723793444656,-566.35561271,0.00011,2]
[335052298,1723793444668,-685774.24916281,0.00011,2]
[335052299,1723793444679,-1297359.30785801,0.00011,2]
[335052307,1723793446013,-195.36205429,0.00010999,2]
[335052308,1723793446022,-5753.34903433,0.00011,2]
[335052309,1723793446034,-2066.50353201,0.00011,2]
[335052310,1723793446047,-612.34305062,0.00011,2]
[335052311,1723793446059,-8499.85506002,0.00011,2]
[335052312,1723793446070,-16288.40638518,0.00011,2]
[335052313,1723793446082,-949.65,0.00011,2]
[335052314,1723793446105,-432.05266282,0.00011,2]
[335052315,1723793446116,-2470.26994605,0.00011,2]
[335052317,1723793446197,-313.70432017,0.000109,2]
[335052318,1723793446207,-5978.25189941,0.00011,2]
[335052319,1723793446218,-565.134902,0.00011,2]
[335052320,1723793448796,-150.0,0.00010505,2]
[335052323,1723793504105,-398.80390625,0.00010405,2]
[335052324,1723793504135,-52.96339221,0.00010505,2]
[335052325,1723793504169,-212.64199028,0.00010899,2]
[335052326,1723793504202,-212.64199027,0.000109,2]
[335052327,1723793504233,-152.92137313,0.000109,2]
[335052328,1723793504264,-171.61026492,0.000109,2]
[335052329,1723793504295,-167.7305538,0.000109,2]
[335052330,1723793504328,-212.64199027,0.000109,2]
[335052331,1723793505227,-398.80390625,0.000109,2]
[335052332,1723793505247,-52.96339221,0.000109,2]
[335052333,1723793505262,-212.64199028,0.000109,2]
[335052334,1723793505324,-212.64199027,0.000109,2]
[335052335,1723793505339,-152.92137313,0.000109,2]
[335052336,1723793505354,-171.61026492,0.000109,2]
[335052337,1723793505367,-167.7305538,0.000109,2]
[335052338,1723793505382,-212.64199027,0.000109,2]
[335052339,1723793505405,-836.08907774,0.000109,2]
[335052343,1723793609816,197.01,8.97e-05,2]
[335052351,1723793633676,-1000.0,0.0001,2]
[335052352,1723793633702,-202.96339221,0.00010026,2]
[335052353,1723793633728,-440.37274966,0.00010471,2]
[335052354,1723793633755,-300.0,0.00010504,2]
[335052355,1723793633782,-878.43858159,0.00010505,2]
[335052356,1723793633809,-561.17278966,0.000109,2]
[335052357,1723793633834,-314.1420077,0.000109,2]
[335052358,1723793633860,-180.65878288,0.000109,2]
[335052359,1723793633885,-170.50678652,0.000109,2]
[335052360,1723793633911,-181.89991337,0.000109,2]
[335052361,1723793633935,-163.01072053,0.000109,2]
[335052362,1723793633960,-1634.88204497,0.000109,2]
[335052363,1723793633984,-575.94900175,0.000109,2]
[335052364,1723793634009,-323.88959871,0.00010993,2]
[335052365,1723793634034,-335.73993642,0.00010997,2]
[335052366,1723793634060,-150.0,0.00010999,2]
[335052367,1723793634090,-79336.37369403,0.00011,2]
[335052377,1723793668742,424.9,9.852e-05,2]